[Event "*** SCC Grand Prix: Titled Tuesday Blitz"]
[Site "Chess.com"]
[Date "2020.08.11"]
[Round "5"]
[White "keepitcool9499"]
[Black "sodastream007"]
[Result "0-1"]
[WhiteElo "2656"]
[BlackElo "2240"]
[TimeControl "180+1"]
[EndTime "10:57:50 PDT"]
[Termination "sodastream007 won on time"]

1. d4 {[%clk 0:03:00.9]} 1... d5 {[%clk 0:02:57.3]} 2. c4 {[%clk 0:02:59.6]}
2... c6 {[%clk 0:02:57.1]} 3. cxd5 {[%clk 0:02:58]} 3... cxd5 {[%clk 0:02:58]}
4. Nc3 {[%clk 0:02:58.8]} 4... Nf6 {[%clk 0:02:57.8]} 5. Bf4 {[%clk 0:02:56.3]}
5... Nc6 {[%clk 0:02:57.1]} 6. Nf3 {[%clk 0:02:51.4]} 6... a6 {[%clk 0:02:54.2]}
7. e3 {[%clk 0:02:51.1]} 7... Bg4 {[%clk 0:02:54.1]} 8. Rc1 {[%clk 0:02:47.9]}
8... e6 {[%clk 0:02:53.3]} 9. Qb3 {[%clk 0:02:45.8]} 9... Bxf3 {[%clk
0:02:29.1]} 10. gxf3 {[%clk 0:02:46.7]} 10... Qd7 {[%clk 0:02:26.7]} 11. Bd3
{[%clk 0:02:43.3]} 11... Be7 {[%clk 0:02:09.9]} 12. Na4 {[%clk 0:02:36.8]} 12...
Na5 {[%clk 0:01:54.9]} 13. Qc2 {[%clk 0:02:30.3]} 13... Qc6 {[%clk 0:01:32.7]}
14. Qxc6+ {[%clk 0:02:20.5]} 14... Nxc6 {[%clk 0:01:29]} 15. Nb6 {[%clk
0:02:20.6]} 15... Ra7 {[%clk 0:01:26.7]} 16. Nc8 {[%clk 0:02:14.6]} 16... Ra8
{[%clk 0:01:24.7]} 17. Nd6+ {[%clk 0:02:08.5]} 17... Bxd6 {[%clk 0:01:23.6]} 18.
Bxd6 {[%clk 0:02:09.4]} 18... Kd7 {[%clk 0:01:21.2]} 19. Bc5 {[%clk 0:02:06.1]}
19... Rac8 {[%clk 0:01:15.1]} 20. Ke2 {[%clk 0:02:02.5]} 20... b6 {[%clk
0:00:55]} 21. Ba3 {[%clk 0:01:57.4]} 21... b5 {[%clk 0:00:54]} 22. Bc5 {[%clk
0:01:54.7]} 22... Na5 {[%clk 0:00:52.9]} 23. b3 {[%clk 0:01:50.3]} 23... Rc6
{[%clk 0:00:52.6]} 24. Rc2 {[%clk 0:01:39.5]} 24... Nb7 {[%clk 0:00:48.1]} 25.
Rhc1 {[%clk 0:01:35.3]} 25... Nxc5 {[%clk 0:00:46.8]} 26. Rxc5 {[%clk
0:01:36.2]} 26... Rhc8 {[%clk 0:00:46.6]} 27. b4 {[%clk 0:01:32.2]} 27... Kd6
{[%clk 0:00:45.7]} 28. a4 {[%clk 0:01:29.1]} 28... Nd7 {[%clk 0:00:42.2]} 29.
axb5 {[%clk 0:01:26.2]} 29... axb5 {[%clk 0:00:36.9]} 30. Bxb5 {[%clk
0:01:20.2]} 30... Nxc5 {[%clk 0:00:32.1]} 31. bxc5+ {[%clk 0:01:19.3]} 31... Kd7
{[%clk 0:00:31]} 32. Ra1 {[%clk 0:01:15.3]} 32... Rc7 {[%clk 0:00:29.7]} 33. Ra8
{[%clk 0:01:06.1]} 33... Rb7 {[%clk 0:00:20.5]} 34. Bxc6+ {[%clk 0:00:58.9]}
34... Kxc6 {[%clk 0:00:21.4]} 35. Ra6+ {[%clk 0:00:53.7]} 35... Kb5 {[%clk
0:00:21]} 36. Rd6 {[%clk 0:00:51.6]} 36... Kc4 {[%clk 0:00:20.6]} 37. c6 {[%clk
0:00:49.4]} 37... Rc7 {[%clk 0:00:20.9]} 38. Rd7 {[%clk 0:00:49.5]} 38... Rxc6
{[%clk 0:00:21.2]} 39. Rxf7 {[%clk 0:00:48.9]} 39... Rb6 {[%clk 0:00:21.7]} 40.
f4 {[%clk 0:00:48]} 40... Rb2+ {[%clk 0:00:21.7]} 41. Kf3 {[%clk 0:00:48]} 41...
Kd3 {[%clk 0:00:22.6]} 42. Rxg7 {[%clk 0:00:47.5]} 42... h5 {[%clk 0:00:22.9]}
43. Rh7 {[%clk 0:00:46.4]} 43... Rb8 {[%clk 0:00:22]} 44. Rxh5 {[%clk
0:00:46.2]} 44... Rg8 {[%clk 0:00:22.6]} 45. Rg5 {[%clk 0:00:45.7]} 45... Rh8
{[%clk 0:00:22.5]} 46. Rg2 {[%clk 0:00:42.8]} 46... Rh4 {[%clk 0:00:21.4]} 47.
Kg3 {[%clk 0:00:41.6]} 47... Rh6 {[%clk 0:00:21.2]} 48. h4 {[%clk 0:00:41.6]}
48... Ke4 {[%clk 0:00:21.5]} 49. Kh3 {[%clk 0:00:30.1]} 49... Kf3 {[%clk
0:00:20.8]} 50. Rg5 {[%clk 0:00:30.1]} 50... Kxf2 {[%clk 0:00:20.5]} 51. Re5
{[%clk 0:00:30.3]} 51... Kf3 {[%clk 0:00:20.7]} 52. f5 {[%clk 0:00:30.1]} 52...
exf5 {[%clk 0:00:21]} 53. Rxd5 {[%clk 0:00:29.2]} 53... Kxe3 {[%clk 0:00:21.3]}
54. Rxf5 {[%clk 0:00:29.4]} 54... Kxd4 {[%clk 0:00:21.7]} 55. Kg4 {[%clk
0:00:29.6]} 55... Ke4 {[%clk 0:00:21.8]} 56. Rf1 {[%clk 0:00:26.7]} 56... Ke5
{[%clk 0:00:21.6]} 57. Kg5 {[%clk 0:00:26.2]} 57... Ra6 {[%clk 0:00:21.3]} 58.
Re1+ {[%clk 0:00:24.9]} 58... Kd6 {[%clk 0:00:20.9]} 59. h5 {[%clk 0:00:24.7]}
59... Ra2 {[%clk 0:00:21]} 60. h6 {[%clk 0:00:22.6]} 60... Rg2+ {[%clk
0:00:20.9]} 61. Kf6 {[%clk 0:00:22.1]} 61... Rf2+ {[%clk 0:00:20.6]} 62. Kg7
{[%clk 0:00:22.1]} 62... Rg2+ {[%clk 0:00:21.2]} 63. Kh8 {[%clk 0:00:22.1]}
63... Kd7 {[%clk 0:00:21.1]} 64. h7 {[%clk 0:00:20.1]} 64... Kd8 {[%clk
0:00:21.6]} 65. Re4 {[%clk 0:00:18.7]} 65... Kd7 {[%clk 0:00:21.6]} 66. Ra4
{[%clk 0:00:15.8]} 66... Ke7 {[%clk 0:00:21.8]} 67. Ra8 {[%clk 0:00:15.7]} 67...
Kf7 {[%clk 0:00:22]} 68. Rg8 {[%clk 0:00:16]} 68... Rh2 {[%clk 0:00:21.4]} 69.
Rg1 {[%clk 0:00:13.2]} 69... Rf2 {[%clk 0:00:20.7]} 70. Rg3 {[%clk 0:00:12.5]}
70... Rf1 {[%clk 0:00:19.6]} 71. Rg7+ {[%clk 0:00:11.7]} 71... Kf8 {[%clk
0:00:19.2]} 72. Ra7 {[%clk 0:00:12]} 72... Rh1 {[%clk 0:00:17.8]} 73. Ra8+
{[%clk 0:00:12.9]} 73... Kf7 {[%clk 0:00:18]} 74. Rg8 {[%clk 0:00:12.8]} 74...
Rh2 {[%clk 0:00:16.5]} 75. Rg1 {[%clk 0:00:12.1]} 75... Rf2 {[%clk 0:00:16]} 76.
Rd1 {[%clk 0:00:11.1]} 76... Kf8 {[%clk 0:00:15.2]} 77. Rd5 {[%clk 0:00:10.9]}
77... Kf7 {[%clk 0:00:14.9]} 78. Rd6 {[%clk 0:00:10.1]} 78... Kf8 {[%clk
0:00:14.8]} 79. Rd7 {[%clk 0:00:10.2]} 79... Rf1 {[%clk 0:00:14.7]} 80. Rg7
{[%clk 0:00:09.9]} 80... Rh1 {[%clk 0:00:13.8]} 81. Rg5 {[%clk 0:00:08.5]} 81...
Rf1 {[%clk 0:00:12.2]} 82. Rg4 {[%clk 0:00:08.1]} 82... Kf7 {[%clk 0:00:12.2]}
83. Rg8 {[%clk 0:00:07.5]} 83... Rh1 {[%clk 0:00:11.1]} 84. Rb8 {[%clk
0:00:07.6]} 84... Rh2 {[%clk 0:00:09.3]} 85. Rb7+ {[%clk 0:00:08.5]} 85... Kf8
{[%clk 0:00:09.1]} 86. Rb3 {[%clk 0:00:08.8]} 86... Kf7 {[%clk 0:00:08.9]} 87.
Rf3+ {[%clk 0:00:08.8]} 87... Ke8 {[%clk 0:00:09.3]} 88. Kg7 {[%clk 0:00:08.4]}
88... Rg2+ {[%clk 0:00:09.7]} 89. Kh6 {[%clk 0:00:05.9]} 89... Rh2+ {[%clk
0:00:10.1]} 90. Kg6 {[%clk 0:00:05.2]} 90... Rg2+ {[%clk 0:00:10.3]} 91. Kf6
{[%clk 0:00:05.1]} 91... Rh2 {[%clk 0:00:10.4]} 92. Ra3 {[%clk 0:00:01.4]} 92...
Rxh7 {[%clk 0:00:08.6]} 0-1

[Event "*** SCC Grand Prix: Titled Tuesday Blitz"]
[Site "Chess.com"]
[Date "2020.08.11"]
[Round "5"]
[White "Region_07"]
[Black "Schandenfreude"]
[Result "1-0"]
[WhiteElo "2413"]
[BlackElo "2538"]
[TimeControl "180+1"]
[EndTime "10:57:59 PDT"]
[Termination "Region_07 won on time"]

1. e4 {[%clk 0:03:00.9]} 1... e6 {[%clk 0:02:56.4]} 2. d4 {[%clk 0:02:56.9]}
2... d5 {[%clk 0:02:47.7]} 3. Nd2 {[%clk 0:02:51.9]} 3... dxe4 {[%clk
0:02:45.3]} 4. Nxe4 {[%clk 0:02:52.8]} 4... Nd7 {[%clk 0:02:45.6]} 5. Nf3 {[%clk
0:02:52]} 5... Ngf6 {[%clk 0:02:41.5]} 6. Bd3 {[%clk 0:02:44.1]} 6... Nxe4
{[%clk 0:02:37.9]} 7. Bxe4 {[%clk 0:02:45]} 7... Nf6 {[%clk 0:02:38]} 8. Bd3
{[%clk 0:02:39.9]} 8... c5 {[%clk 0:02:37.8]} 9. c3 {[%clk 0:02:31.4]} 9... cxd4
{[%clk 0:02:37.6]} 10. Nxd4 {[%clk 0:02:28.9]} 10... Be7 {[%clk 0:02:37.2]} 11.
O-O {[%clk 0:02:26.3]} 11... O-O {[%clk 0:02:36.8]} 12. Qf3 {[%clk 0:02:24.5]}
12... Qd5 {[%clk 0:02:33.5]} 13. Qxd5 {[%clk 0:02:16.2]} 13... Nxd5 {[%clk
0:02:33.3]} 14. Be4 {[%clk 0:02:16.3]} 14... Nf6 {[%clk 0:02:25.9]} 15. Bf3
{[%clk 0:02:15.3]} 15... e5 {[%clk 0:02:18.2]} 16. Re1 {[%clk 0:02:10.3]} 16...
exd4 {[%clk 0:01:46.3]} 17. Rxe7 {[%clk 0:02:11.2]} 17... dxc3 {[%clk
0:01:39.9]} 18. bxc3 {[%clk 0:02:10.4]} 18... Re8 {[%clk 0:01:13.7]} 19. Rxe8+
{[%clk 0:02:01.5]} 19... Nxe8 {[%clk 0:01:13.8]} 20. Bf4 {[%clk 0:01:55.8]}
20... a5 {[%clk 0:00:45.6]} 21. Rb1 {[%clk 0:01:51.6]} 21... Ra7 {[%clk
0:00:42.8]} 22. Be3 {[%clk 0:01:41]} 22... Ra8 {[%clk 0:00:42.7]} 23. Bxb7
{[%clk 0:01:37]} 23... Bxb7 {[%clk 0:00:37.6]} 24. Rxb7 {[%clk 0:01:36]} 24...
Nd6 {[%clk 0:00:38]} 25. Ra7 {[%clk 0:01:11.1]} 25... Rxa7 {[%clk 0:00:23.5]}
26. Bxa7 {[%clk 0:01:12]} 26... Nb5 {[%clk 0:00:22.8]} 27. Bd4 {[%clk
0:01:07.8]} 27... f6 {[%clk 0:00:23.1]} 28. Kf1 {[%clk 0:01:04.8]} 28... Kf7
{[%clk 0:00:22.3]} 29. Ke2 {[%clk 0:01:04.9]} 29... Ke6 {[%clk 0:00:22.8]} 30.
Kd3 {[%clk 0:01:05]} 30... Nd6 {[%clk 0:00:21]} 31. a4 {[%clk 0:00:58.4]} 31...
Kd5 {[%clk 0:00:20.6]} 32. Bb6 {[%clk 0:00:42.8]} 32... Nc4 {[%clk 0:00:19.4]}
33. Bd8 {[%clk 0:00:40.9]} 33... Nb2+ {[%clk 0:00:18.1]} 34. Kc2 {[%clk
0:00:38.5]} 34... Nxa4 {[%clk 0:00:18.4]} 35. Bxa5 {[%clk 0:00:38.5]} 35... Kc4
{[%clk 0:00:19]} 36. g4 {[%clk 0:00:20.3]} 36... Nc5 {[%clk 0:00:17.7]} 37. h4
{[%clk 0:00:19.2]} 37... Nd3 {[%clk 0:00:15.3]} 38. Bb6 {[%clk 0:00:17.1]} 38...
Ne5 {[%clk 0:00:12.2]} 39. g5 {[%clk 0:00:15.7]} 39... Nf3 {[%clk 0:00:12]} 40.
gxf6 {[%clk 0:00:13.7]} 40... gxf6 {[%clk 0:00:12.9]} 41. h5 {[%clk 0:00:13]}
41... Ng5 {[%clk 0:00:05.1]} 42. Bd4 {[%clk 0:00:11]} 42... f5 {[%clk
0:00:04.1]} 43. Kd2 {[%clk 0:00:07.9]} 43... Ne4+ {[%clk 0:00:02.7]} 44. Ke3
{[%clk 0:00:08]} 44... Kd5 {[%clk 0:00:01.8]} 45. Kf4 {[%clk 0:00:07.9]} 45...
Ke6 {[%clk 0:00:02.3]} 46. f3 {[%clk 0:00:08.4]} 46... Nd2 {[%clk 0:00:02.3]}
47. Ke3 {[%clk 0:00:05.9]} 47... Nc4+ {[%clk 0:00:02.4]} 48. Kf4 {[%clk
0:00:05.9]} 48... Nd2 {[%clk 0:00:02.6]} 49. Be3 {[%clk 0:00:05.5]} 49... Nc4
{[%clk 0:00:03.5]} 50. Bc1 {[%clk 0:00:05.4]} 50... Nd6 {[%clk 0:00:03.7]} 51.
Ba3 {[%clk 0:00:04.2]} 51... Nc4 {[%clk 0:00:04.2]} 52. Bc1 {[%clk 0:00:03.4]}
52... Nd6 {[%clk 0:00:04.5]} 53. Kg5 {[%clk 0:00:03.4]} 53... Nc4 {[%clk
0:00:04.2]} 54. Kh6 {[%clk 0:00:03.5]} 54... Ne5 {[%clk 0:00:04.6]} 55. Kxh7
{[%clk 0:00:02.5]} 55... Nxf3 {[%clk 0:00:05]} 56. Kg6 {[%clk 0:00:03]} 56...
Nh4+ {[%clk 0:00:04.1]} 57. Kg7 {[%clk 0:00:03.1]} 57... Ke5 {[%clk 0:00:03.7]}
58. h6 {[%clk 0:00:03.4]} 58... f4 {[%clk 0:00:03.9]} 59. Bxf4+ {[%clk
0:00:02.5]} 59... Kxf4 {[%clk 0:00:03.6]} 60. h7 {[%clk 0:00:03.4]} 60... Nf5+
{[%clk 0:00:04.1]} 61. Kg8 {[%clk 0:00:02.1]} 61... Ne7+ {[%clk 0:00:04.1]} 62.
Kf7 {[%clk 0:00:02.2]} 62... Nf5 {[%clk 0:00:04.5]} 63. h8=Q {[%clk 0:00:02.4]}
63... Nd6+ {[%clk 0:00:05.1]} 64. Ke6 {[%clk 0:00:01.2]} 64... Ne4 {[%clk
0:00:05.4]} 65. Qf8+ {[%clk 0:00:01.8]} 65... Ke3 {[%clk 0:00:05.3]} 66. Qb4
{[%clk 0:00:02.5]} 66... Nd2 {[%clk 0:00:04.9]} 67. Kd7 {[%clk 0:00:03.1]} 67...
Kd3 {[%clk 0:00:05.8]} 68. Kd6 {[%clk 0:00:03.2]} 68... Ne4+ {[%clk 0:00:06.3]}
69. Kd5 {[%clk 0:00:04.1]} 69... Nxc3+ {[%clk 0:00:06.7]} 70. Kc6 {[%clk
0:00:02.3]} 70... Ne2 {[%clk 0:00:06.8]} 71. Kb7 {[%clk 0:00:02.6]} 71... Nd4
{[%clk 0:00:07]} 72. Qe7 {[%clk 0:00:03.4]} 72... Kc4 {[%clk 0:00:06.7]} 73. Qd8
{[%clk 0:00:04.3]} 73... Nb3 {[%clk 0:00:06.9]} 74. Qh8 {[%clk 0:00:05]} 74...
Nc5+ {[%clk 0:00:07.3]} 75. Kc6 {[%clk 0:00:04.2]} 75... Ne4 {[%clk 0:00:08.2]}
76. Qh4 {[%clk 0:00:02.9]} 76... Kd3 {[%clk 0:00:08.6]} 77. Kb7 {[%clk
0:00:03.7]} 77... Nc5+ {[%clk 0:00:08.7]} 78. Kc6 {[%clk 0:00:02.9]} 78... Ne4
{[%clk 0:00:09.6]} 79. Kc7 {[%clk 0:00:03.8]} 79... Nc5 {[%clk 0:00:09.7]} 80.
Kb8 {[%clk 0:00:04.7]} 80... Ne4 {[%clk 0:00:10.2]} 81. Kc7 {[%clk 0:00:05]}
81... Kd4 {[%clk 0:00:10.8]} 82. Kd8 {[%clk 0:00:05.5]} 82... Ke5 {[%clk
0:00:11.2]} 83. Qh7 {[%clk 0:00:05.7]} 83... Nf6 {[%clk 0:00:11.3]} 84. Qg6
{[%clk 0:00:05.4]} 84... Ke6 {[%clk 0:00:10.8]} 85. Kc7 {[%clk 0:00:04.8]} 85...
Ke5 {[%clk 0:00:11.1]} 86. Kc6 {[%clk 0:00:05.6]} 86... Ne4 {[%clk 0:00:11.3]}
87. Qf7 {[%clk 0:00:04.8]} 87... Kd4 {[%clk 0:00:08.7]} 88. Qd5+ {[%clk
0:00:04.4]} 88... Ke3 {[%clk 0:00:09.2]} 89. Qe5 {[%clk 0:00:04.3]} 89... Kf3
{[%clk 0:00:09.2]} 90. Kd5 {[%clk 0:00:04.3]} 90... Nc3+ {[%clk 0:00:09.4]} 91.
Qxc3+ {[%clk 0:00:04.2]} 1-0

[Event "*** SCC Grand Prix: Titled Tuesday Blitz"]
[Site "Chess.com"]
[Date "2020.08.11"]
[Round "5"]
[White "Paladin61"]
[Black "Durarbayli"]
[Result "1-0"]
[WhiteElo "2653"]
[BlackElo "2854"]
[TimeControl "180+1"]
[EndTime "10:58:07 PDT"]
[Termination "Paladin61 won on time"]

1. b3 {[%clk 0:03:00.9]} 1... Nf6 {[%clk 0:02:57.8]} 2. Bb2 {[%clk 0:03:01.8]}
2... g6 {[%clk 0:02:58.2]} 3. Bxf6 {[%clk 0:03:01.5]} 3... exf6 {[%clk
0:02:58.7]} 4. c4 {[%clk 0:03:00.8]} 4... d5 {[%clk 0:02:58.8]} 5. cxd5 {[%clk
0:03:00.9]} 5... Qxd5 {[%clk 0:02:59.2]} 6. Nc3 {[%clk 0:03:01.4]} 6... Qa5
{[%clk 0:02:57.5]} 7. a3 {[%clk 0:03:01]} 7... c6 {[%clk 0:02:44.1]} 8. e3
{[%clk 0:02:59.3]} 8... Bg7 {[%clk 0:02:40.7]} 9. Nge2 {[%clk 0:02:58.7]} 9...
O-O {[%clk 0:02:40]} 10. g3 {[%clk 0:02:58.7]} 10... Rd8 {[%clk 0:02:14.7]} 11.
Bg2 {[%clk 0:02:57.3]} 11... Rd3 {[%clk 0:01:53]} 12. O-O {[%clk 0:02:43.6]}
12... Qd8 {[%clk 0:01:52.1]} 13. Ra2 {[%clk 0:02:38.6]} 13... Bg4 {[%clk
0:01:45.4]} 14. Qc2 {[%clk 0:02:24.8]} 14... Bf5 {[%clk 0:01:27.4]} 15. Be4
{[%clk 0:02:23.6]} 15... Bxe4 {[%clk 0:01:24]} 16. Nxe4 {[%clk 0:02:24.5]} 16...
Na6 {[%clk 0:01:20.2]} 17. Nd4 {[%clk 0:02:00.3]} 17... Rxd4 {[%clk 0:01:19.9]}
18. exd4 {[%clk 0:02:00.5]} 18... Qxd4 {[%clk 0:01:20.8]} 19. Qc4 {[%clk
0:01:57.8]} 19... Qd7 {[%clk 0:01:13.6]} 20. d4 {[%clk 0:01:52.9]} 20... b5
{[%clk 0:00:34.2]} 21. Qc2 {[%clk 0:01:40.7]} 21... f5 {[%clk 0:00:34.1]} 22.
Nc5 {[%clk 0:01:28.8]} 22... Nxc5 {[%clk 0:00:34.2]} 23. dxc5 {[%clk 0:01:29.2]}
23... Rd8 {[%clk 0:00:35.1]} 24. a4 {[%clk 0:01:24.6]} 24... b4 {[%clk
0:00:32.7]} 25. Qc4 {[%clk 0:01:21.3]} 25... Bc3 {[%clk 0:00:31.6]} 26. Re2
{[%clk 0:01:13.6]} 26... Kg7 {[%clk 0:00:18.9]} 27. a5 {[%clk 0:01:11.6]} 27...
Qd5 {[%clk 0:00:15.2]} 28. Qxd5 {[%clk 0:01:03]} 28... Rxd5 {[%clk 0:00:16.1]}
29. Re7 {[%clk 0:01:03]} 29... a6 {[%clk 0:00:16.1]} 30. Ra7 {[%clk 0:00:57.4]}
30... Rxc5 {[%clk 0:00:16.1]} 31. Rxa6 {[%clk 0:00:58.3]} 31... Be5 {[%clk
0:00:11.6]} 32. Rd1 {[%clk 0:00:50.3]} 32... f4 {[%clk 0:00:10.2]} 33. Kg2
{[%clk 0:00:48.6]} 33... Rc3 {[%clk 0:00:09.4]} 34. Rd7 {[%clk 0:00:34.1]} 34...
f3+ {[%clk 0:00:09.2]} 35. Kh3 {[%clk 0:00:33.4]} 35... h5 {[%clk 0:00:09]} 36.
Raa7 {[%clk 0:00:17.6]} 36... g5 {[%clk 0:00:08.7]} 37. Rxf7+ {[%clk 0:00:18.1]}
37... Kg6 {[%clk 0:00:09.6]} 38. g4 {[%clk 0:00:18.6]} 38... h4 {[%clk 0:00:09]}
39. Rf5 {[%clk 0:00:16.6]} 39... Bf4 {[%clk 0:00:08.8]} 40. Re7 {[%clk
0:00:13.2]} 40... Rc2 {[%clk 0:00:07]} 41. Re6+ {[%clk 0:00:12.4]} 41... Kg7
{[%clk 0:00:07.5]} 42. a6 {[%clk 0:00:10]} 42... Rxf2 {[%clk 0:00:06.7]} 43.
Rxf4 {[%clk 0:00:10.1]} 43... gxf4 {[%clk 0:00:07.6]} 44. Re4 {[%clk 0:00:09]}
44... Ra2 {[%clk 0:00:06.4]} 45. Rxf4 {[%clk 0:00:08.8]} 45... Rxa6 {[%clk
0:00:05.2]} 46. Rxf3 {[%clk 0:00:08.5]} 46... Ra3 {[%clk 0:00:06.1]} 47. Kxh4
{[%clk 0:00:08.9]} 47... Kg6 {[%clk 0:00:05.6]} 48. h3 {[%clk 0:00:08.4]} 48...
c5 {[%clk 0:00:05.8]} 49. Rf5 {[%clk 0:00:08.2]} 49... Rxb3 {[%clk 0:00:06]} 50.
Rxc5 {[%clk 0:00:07.9]} 50... Kf6 {[%clk 0:00:06.3]} 51. g5+ {[%clk 0:00:06.4]}
51... Ke6 {[%clk 0:00:05.2]} 52. Kg4 {[%clk 0:00:06.4]} 52... Rb1 {[%clk
0:00:04.7]} 53. h4 {[%clk 0:00:05.5]} 53... b3 {[%clk 0:00:04.6]} 54. Rb5 {[%clk
0:00:04.9]} 54... b2 {[%clk 0:00:05]} 55. Kh5 {[%clk 0:00:04.9]} 55... Ke7
{[%clk 0:00:05.2]} 56. Rb7+ {[%clk 0:00:04.7]} 56... Ke6 {[%clk 0:00:05.3]} 57.
Rb5 {[%clk 0:00:04.3]} 57... Kf7 {[%clk 0:00:05.1]} 58. Rb7+ {[%clk 0:00:04.2]}
58... Ke6 {[%clk 0:00:04.9]} 59. Rb6+ {[%clk 0:00:04.9]} 59... Kf5 {[%clk
0:00:04.9]} 60. Rb5+ {[%clk 0:00:04.6]} 60... Ke6 {[%clk 0:00:04.8]} 61. Rb3
{[%clk 0:00:04.6]} 61... Kf5 {[%clk 0:00:04.7]} 62. Rb4 {[%clk 0:00:04.7]} 62...
Ke6 {[%clk 0:00:04.6]} 63. Rb8 {[%clk 0:00:04.4]} 63... Kf5 {[%clk 0:00:04.5]}
64. Kh6 {[%clk 0:00:04.5]} 64... Rh1 {[%clk 0:00:03.4]} 65. Rb5+ {[%clk
0:00:04.6]} 65... Ke6 {[%clk 0:00:03.7]} 66. Rxb2 {[%clk 0:00:04]} 66... Rxh4+
{[%clk 0:00:04.6]} 67. Kg7 {[%clk 0:00:04]} 67... Rc4 {[%clk 0:00:03.3]} 68. g6
{[%clk 0:00:04.1]} 68... Rc7+ {[%clk 0:00:03.5]} 69. Kh6 {[%clk 0:00:04]} 69...
Ke7 {[%clk 0:00:02]} 70. Re2+ {[%clk 0:00:04.2]} 70... Kf8 {[%clk 0:00:02.1]}
71. Ra2 {[%clk 0:00:03.5]} 71... Rc1 {[%clk 0:00:01]} 72. Ra8+ {[%clk
0:00:01.3]} 72... Ke7 {[%clk 0:00:01.9]} 73. Ra7+ {[%clk 0:00:01.8]} 73... Kf8
{[%clk 0:00:01.5]} 74. Ra8+ {[%clk 0:00:02.7]} 74... Ke7 {[%clk 0:00:01.8]} 75.
Kg7 {[%clk 0:00:03.1]} 75... Re1 {[%clk 0:00:01.6]} 76. Ra7+ {[%clk 0:00:03.2]}
76... Ke6 {[%clk 0:00:02.5]} 77. Rf7 {[%clk 0:00:03.8]} 77... Rg1 {[%clk
0:00:03.4]} 78. Rf6+ {[%clk 0:00:03.8]} 78... Ke7 {[%clk 0:00:03]} 79. Rf7+
{[%clk 0:00:04.7]} 79... Ke6 {[%clk 0:00:03.4]} 80. Rf8 {[%clk 0:00:05]} 80...
Ke7 {[%clk 0:00:04.3]} 81. Rf2 {[%clk 0:00:04.5]} 81... Rh1 {[%clk 0:00:04]} 82.
Re2+ {[%clk 0:00:03.9]} 82... Kd7 {[%clk 0:00:02.3]} 83. Kf7 {[%clk 0:00:04.8]}
83... Rf1+ {[%clk 0:00:02.8]} 84. Kg8 {[%clk 0:00:04.6]} 84... Rg1 {[%clk
0:00:03.1]} 85. g7 {[%clk 0:00:04.7]} 85... Rg3 {[%clk 0:00:03.3]} 86. Re4
{[%clk 0:00:04.3]} 86... Kd6 {[%clk 0:00:02.5]} 87. Kf7 {[%clk 0:00:04]} 87...
Kd5 {[%clk 0:00:02.7]} 88. Rf4 {[%clk 0:00:03.9]} 88... Ke5 {[%clk 0:00:01.4]}
89. Rf1 {[%clk 0:00:03.3]} 1-0

[Event "*** SCC Grand Prix: Titled Tuesday Blitz"]
[Site "Chess.com"]
[Date "2020.08.11"]
[Round "6"]
[White "coalescenet"]
[Black "anon569"]
[Result "0-1"]
[WhiteElo "1946"]
[BlackElo "2349"]
[TimeControl "180+1"]
[EndTime "11:01:24 PDT"]
[Termination "anon569 won by resignation"]

1. d4 {[%clk 0:02:58.8]} 1... Nf6 {[%clk 0:02:59.3]} 2. c4 {[%clk 0:02:59.4]}
2... e6 {[%clk 0:02:59.4]} 3. Nf3 {[%clk 0:02:59.5]} 3... Bb4+ {[%clk 0:02:59]}
4. Nbd2 {[%clk 0:02:57.8]} 4... b6 {[%clk 0:02:58.1]} 5. e3 {[%clk 0:02:57.8]}
5... Bb7 {[%clk 0:02:57.7]} 6. a3 {[%clk 0:02:58.1]} 6... Bxd2+ {[%clk
0:02:57.6]} 7. Qxd2 {[%clk 0:02:57.4]} 7... O-O {[%clk 0:02:52.7]} 8. b4 {[%clk
0:02:47.1]} 8... Ne4 {[%clk 0:02:50.3]} 9. Qc2 {[%clk 0:02:44.7]} 9... d6 {[%clk
0:02:47.7]} 10. Bb2 {[%clk 0:02:40.7]} 10... Nd7 {[%clk 0:02:46]} 11. Nd2 {[%clk
0:02:36.9]} 11... f5 {[%clk 0:02:44.6]} 12. f3 {[%clk 0:02:33.5]} 12... Qh4+
{[%clk 0:02:43.3]} 13. Kd1 {[%clk 0:02:32.3]} 13... Nf2+ {[%clk 0:02:42.9]} 0-1

[Event "*** SCC Grand Prix: Titled Tuesday Blitz"]
[Site "Chess.com"]
[Date "2020.08.11"]
[Round "6"]
[White "icychess54"]
[Black "gagtemp"]
[Result "1-0"]
[WhiteElo "2227"]
[BlackElo "1958"]
[TimeControl "180+1"]
[EndTime "11:01:28 PDT"]
[Termination "icychess54 won by resignation"]

1. c4 {[%clk 0:03:00.9]} 1... e6 {[%clk 0:02:57.9]} 2. Nf3 {[%clk 0:02:59.5]}
2... d5 {[%clk 0:02:57.7]} 3. e3 {[%clk 0:03:00.4]} 3... c5 {[%clk 0:02:56.6]}
4. cxd5 {[%clk 0:03:00.3]} 4... exd5 {[%clk 0:02:56.2]} 5. d4 {[%clk 0:03:01.2]}
5... Nf6 {[%clk 0:02:55.2]} 6. Nc3 {[%clk 0:03:00.7]} 6... Nc6 {[%clk
0:02:54.7]} 7. Be2 {[%clk 0:03:00.2]} 7... Be7 {[%clk 0:02:53.9]} 8. O-O {[%clk
0:02:58.4]} 8... O-O {[%clk 0:02:53.8]} 9. b3 {[%clk 0:02:55.5]} 9... a6 {[%clk
0:02:51.8]} 10. Bb2 {[%clk 0:02:54.7]} 10... b5 {[%clk 0:02:43.8]} 11. dxc5
{[%clk 0:02:54.5]} 11... Bxc5 {[%clk 0:02:42.9]} 12. Rc1 {[%clk 0:02:55.2]}
12... Qb6 {[%clk 0:02:30.4]} 13. Nxd5 {[%clk 0:02:47.4]} 13... Nxd5 {[%clk
0:02:22.8]} 14. Qxd5 {[%clk 0:02:47.3]} 1-0

[Event "*** SCC Grand Prix: Titled Tuesday Blitz"]
[Site "Chess.com"]
[Date "2020.08.11"]
[Round "6"]
[White "Brave_spirit12"]
[Black "Twitch_ElhamBlitz05"]
[Result "0-1"]
[WhiteElo "2529"]
[BlackElo "2764"]
[TimeControl "180+1"]
[EndTime "11:02:32 PDT"]
[Termination "Twitch_ElhamBlitz05 won by resignation"]

1. e4 {[%clk 0:03:00.5]} 1... c6 {[%clk 0:02:59.9]} 2. Nc3 {[%clk 0:03:00.2]}
2... d5 {[%clk 0:03:00.8]} 3. Nf3 {[%clk 0:03:00.8]} 3... dxe4 {[%clk
0:03:00.7]} 4. Nxe4 {[%clk 0:03:01.7]} 4... Nf6 {[%clk 0:03:01.6]} 5. Nxf6+
{[%clk 0:02:59.1]} 5... exf6 {[%clk 0:03:02.5]} 6. Bc4 {[%clk 0:02:58.7]} 6...
Bd6 {[%clk 0:03:03.4]} 7. O-O {[%clk 0:02:58.4]} 7... O-O {[%clk 0:03:04.3]} 8.
d4 {[%clk 0:02:58.4]} 8... Re8 {[%clk 0:03:04.4]} 9. c3 {[%clk 0:02:58.1]} 9...
Nd7 {[%clk 0:03:04.6]} 10. Be3 {[%clk 0:02:53.7]} 10... Nf8 {[%clk 0:03:04.3]}
11. h3 {[%clk 0:02:51.5]} 11... Ng6 {[%clk 0:03:04.3]} 12. Re1 {[%clk
0:02:50.9]} 12... Bf5 {[%clk 0:03:04.2]} 13. Bd3 {[%clk 0:02:49.4]} 13... Be6
{[%clk 0:03:04.3]} 14. c4 {[%clk 0:02:16.8]} 14... Qd7 {[%clk 0:03:02.6]} 15. d5
{[%clk 0:02:05.8]} 15... cxd5 {[%clk 0:03:01.7]} 16. cxd5 {[%clk 0:02:04.7]}
16... Bxh3 {[%clk 0:03:01.4]} 17. gxh3 {[%clk 0:02:01.1]} 17... Qxh3 {[%clk
0:03:02.3]} 18. Bxg6 {[%clk 0:02:01]} 18... hxg6 {[%clk 0:03:01.6]} 19. Nd4
{[%clk 0:01:50.1]} 19... Rxe3 {[%clk 0:02:51.3]} 0-1